Departmental family,Entity,Date Paid,Expense type,Expense Area,Supplier,Transaction Number, Amount ,Description,Supplier Type,Expenditure Type
UK Statistics Authority,Office for National Statistics,01-Dec-16,ICT Outsourcing & Maintenance/Support,Digital Services Technology and Methodology,Fujitsu Services Ltd,5226,"98,616.37",Information Management Services,Large,Programme
UK Statistics Authority,Office for National Statistics,02-Dec-16,Other ICT Costs,Digital Services Technology and Methodology,Comparex UK Ltd,5474,"25,412.09",Information Management Services,Large,Programme
UK Statistics Authority,Office for National Statistics,02-Dec-16,OTHER ICT COSTS SOFTWARE,Digital Services Technology and Methodology,Comparex UK Ltd,5474,193.02,Information Management Services,Large,Programme
UK Statistics Authority,Office for National Statistics,05-Dec-16,Rent Payable,Property Titchfield,Eaton Aerospace Limited,5800,"25,154.40",Rent Payable Titchfield,Large,Programme
UK Statistics Authority,Office for National Statistics,05-Dec-16,Childcare Services,Corporate Support,Computershare Voucher Services,5801,"32,093.92",Childcare Vouchers,Large,Programme
UK Statistics Authority,Office for National Statistics,05-Dec-16,Childcare Services,Finance,Computershare Voucher Services,5801,"2,503.32",Childcare Vouchers,Large,Programme
UK Statistics Authority,Office for National Statistics,07-Dec-16,ICT Outsourcing & Maintenance/Support,Digital Services Technology and Methodology,Mango Solutions,5804,"50,700.00",Information Management Services,SME,Programme
UK Statistics Authority,Office for National Statistics,07-Dec-16,Contractors,Digital Services Technology and Methodology,E Synergy Solutions,5809,"157,656.00",Information Management Services,SME,Programme
UK Statistics Authority,Office for National Statistics,07-Dec-16,ICT Outsourcing & Maintenance/Support,Digital Services Technology and Methodology,E Synergy Solutions,5809,"37,182.00",Information Management Services,SME,Programme
UK Statistics Authority,Office for National Statistics,07-Dec-16,Non IT Contractual Payments,Divisional Management,Engine Partners UK LLP,5813,"58,153.58",Information Management Services,Large,Programme
UK Statistics Authority,Office for National Statistics,07-Dec-16,Travel & Subsistence,Corporate Support,Redfern Travel,5819,"34,526.33",Travel and Accommodation Booking Service,SME,Programme
UK Statistics Authority,Office for National Statistics,07-Dec-16,Capital Major Works > 25K,Property Newport,SHS Integrated Services Ltd,5824,"115,619.62",Major Works Newport Cladding Phase 1,Large,Programme
UK Statistics Authority,Office for National Statistics,07-Dec-16,Surveys,National Accounts and Economic Statistics,TNS UK Ltd,5825,"214,027.20",Statistical Services,Large,Programme
UK Statistics Authority,Office for National Statistics,07-Dec-16,Other ICT Costs,Digital Services Technology and Methodology,Lexmark International Ltd,5827,"34,867.32",Information Management Services,Large,Programme
UK Statistics Authority,Office for National Statistics,07-Dec-16,Capital Major Works > 25K,Business Services and Development,Central Roofing Ltd,5828,"29,737.56",Newport Roofing Phase 2 Newport,SME,Programme
UK Statistics Authority,Office for National Statistics,07-Dec-16,Capital Major Works > 25K,Property Newport,Paramount Office Interiors Ltd,5835,"186,926.67",Major Works Newport Data Block,SME,Programme
UK Statistics Authority,Office for National Statistics,07-Dec-16,Major Works over 25K,Property Newport,Paramount Office Interiors Ltd,5835,"155,772.24",Major Works Newport Data Block,SME,Programme
UK Statistics Authority,Office for National Statistics,07-Dec-16,IT Purchases > 2K,Digital Services Technology and Methodology,Computacenter (UK) Limited,5837,"77,216.52",Information Management Services,Large,Programme
UK Statistics Authority,Office for National Statistics,07-Dec-16,Other ICT Costs,Digital Services Technology and Methodology,Computacenter (UK) Limited,5837,"71,709.94",Information Management Services,Large,Programme
UK Statistics Authority,Office for National Statistics,07-Dec-16,Marketing & Media,Director General,Havas People,5841,"25,087.13",Advertising services,SME,Programme
UK Statistics Authority,Office for National Statistics,09-Dec-16,FM Contract Payments,Business Services and Development,Vinci Construction UK Limited,6448,"38,018.90",Facilities Management,Large,Programme
UK Statistics Authority,Office for National Statistics,09-Dec-16,FM Contract Payments,Corporate Support,Vinci Construction UK Limited,6448,"307,614.79",Facilities Management,Large,Programme
UK Statistics Authority,Office for National Statistics,09-Dec-16,Contractors,Business Services and Development,Methods Professional Services,6459,"9,449.66",Information Management Services,SME,Programme
UK Statistics Authority,Office for National Statistics,09-Dec-16,Contractors,Finance,Methods Professional Services,6459,"8,630.40",Information Management Services,SME,Programme
UK Statistics Authority,Office for National Statistics,09-Dec-16,Contractors,Finance,Methods Professional Services,6459,"8,630.40",Information Management Services,SME,Programme
UK Statistics Authority,Office for National Statistics,09-Dec-16,Contractors,Portfolio Design,Methods Professional Services,6459,"9,986.40",Information Management Services,SME,Programme
UK Statistics Authority,Office for National Statistics,09-Dec-16,Marketing & Media,Business Services and Development,Thirty Three Bristol,6460,"17,418.18",Information Management Services,SME,Programme
UK Statistics Authority,Office for National Statistics,09-Dec-16,Marketing & Media,Digital Services Technology and Methodology,Thirty Three Bristol,6460,"8,855.64",Information Management Services,SME,Programme
UK Statistics Authority,Office for National Statistics,09-Dec-16,Postage,Data Collection,UK Mail,6462,"29,734.13",Outgoing Postage,Large,Programme
UK Statistics Authority,Office for National Statistics,09-Dec-16,Capital Major Works > 25K,Property Newport,Central Roofing Ltd,6467,"300,110.27",Major Works Newport Roofing Phase 3,SME,Programme
UK Statistics Authority,Office for National Statistics,09-Dec-16,Major Works over 25K,Property Newport,Central Roofing Ltd,6467,"151,200.00",Major Works Newport Roofing Phase 3,SME,Programme
UK Statistics Authority,Office for National Statistics,09-Dec-16,Accommodation & Building Management - Miscellaneous Minor Works,Digital Services Technology and Methodology,Paramount Office Interiors Ltd,6475,"48,102.66",Major Works Newport Annex,SME,Programme
UK Statistics Authority,Office for National Statistics,09-Dec-16,Building Refurbishment,Property Titchfield,Paramount Office Interiors Ltd,6475,693.3,Major Works Titchfield,SME,Programme
UK Statistics Authority,Office for National Statistics,09-Dec-16,Major Works over 25K,Property Newport,Paramount Office Interiors Ltd,6475,"4,661.87",Major Works Storage Container,SME,Programme
UK Statistics Authority,Office for National Statistics,09-Dec-16,Major Works over 25K,Property Newport,Paramount Office Interiors Ltd,6475,"38,880.16",Smart Working Pilot at Newport,SME,Programme
UK Statistics Authority,Office for National Statistics,09-Dec-16,Major Works over 25K,Property Titchfield,Paramount Office Interiors Ltd,6475,788.93,Major Works Titchfield,SME,Programme
UK Statistics Authority,Office for National Statistics,09-Dec-16,Accommodation & Building Management - Miscellaneous Minor Works,Business Services and Development,Parity Resources Limited,6478,"2,446.08",Information Management Services,Large,Programme
UK Statistics Authority,Office for National Statistics,09-Dec-16,Contractors,Business Services and Development,Parity Resources Limited,6478,"10,872.24",Information Management Services,Large,Programme
UK Statistics Authority,Office for National Statistics,09-Dec-16,Contractors,Digital Services Technology and Methodology,Parity Resources Limited,6478,"20,267.57",Information Management Services,Large,Programme
UK Statistics Authority,Office for National Statistics,09-Dec-16,Contractors,National Accounts and Economic Statistics,Parity Resources Limited,6478,"9,465.19",Information Management Services,Large,Programme
UK Statistics Authority,Office for National Statistics,09-Dec-16,Contractors,Organisational Development,Parity Resources Limited,6478,"4,924.50",Information Management Services,Large,Programme
UK Statistics Authority,Office for National Statistics,09-Dec-16,Short-Term Contract & Agency Staff - Full Cost,Census,Parity Resources Limited,6478,"3,805.97",Information Management Services,Large,Programme
UK Statistics Authority,Office for National Statistics,09-Dec-16,Short-Term Contract & Agency Staff - Full Cost,Data Collection,Parity Resources Limited,6478,"10,260.00",Information Management Services,Large,Programme
UK Statistics Authority,Office for National Statistics,09-Dec-16,ICT Outsourcing & Maintenance/Support,Digital Services Technology and Methodology,ServiceNow,6481,"113,909.76",Information Management Services,Large,Programme
UK Statistics Authority,Office for National Statistics,12-Dec-16,Contractors,Digital Services Technology and Methodology,RSM Partners Ltd,6871,"63,954.00",Information Management Services,SME,Programme
UK Statistics Authority,Office for National Statistics,12-Dec-16,ICT Outsourcing & Maintenance/Support,Digital Services Technology and Methodology,Landmark Information Group,6877,"118,665.80",Information Management Services,Large,Programme
UK Statistics Authority,Office for National Statistics,12-Dec-16,IT Purchases > 2K,Digital Services Technology and Methodology,The Sensible Code Company,6880,"26,630.75",Software Updates,SME,Programme
UK Statistics Authority,Office for National Statistics,12-Dec-16,Contractors,Business Services and Development,Certes Computing Ltd,6881,"43,452.00",Information Management Services,SME,Programme
UK Statistics Authority,Office for National Statistics,12-Dec-16,Contractors,Digital Services Technology and Methodology,Certes Computing Ltd,6881,"15,968.16",Information Management Services,SME,Programme
UK Statistics Authority,Office for National Statistics,12-Dec-16,Insurance Premium Payment,Digital Services Technology and Methodology,Aviva,30000245,"29,305.96",Information Management Services,Large,Programme
UK Statistics Authority,Office for National Statistics,14-Dec-16,ICT Outsourcing & Maintenance/Support,Central Support,Mango Solutions,7409,"110,331.00",Information Management Services,SME,Programme
UK Statistics Authority,Office for National Statistics,14-Dec-16,ICT Outsourcing & Maintenance/Support,Digital Services Technology and Methodology,Mastek,7410,"109,500.00",Information Management Services,Large,Programme
UK Statistics Authority,Office for National Statistics,14-Dec-16,Procurement Card,Corporate Support,Royal Bank of Scotland,7424,"54,514.42",Multiple Procurement Card Purchases,Large,Programme
UK Statistics Authority,Office for National Statistics,14-Dec-16,Stationery,Corporate Support,Royal Bank of Scotland,7424,"9,760.41",Multiple Procurement Card Stationery,Large,Programme
UK Statistics Authority,Office for National Statistics,14-Dec-16,Other ICT Costs,Census,Computacenter (UK) Limited,7425,598.86,Information Management Services,Large,Programme
UK Statistics Authority,Office for National Statistics,14-Dec-16,Other ICT Costs,Data Collection,Computacenter (UK) Limited,7425,150.44,Information Management Services,Large,Programme
UK Statistics Authority,Office for National Statistics,14-Dec-16,Other ICT Costs,Digital Services Technology and Methodology,Computacenter (UK) Limited,7425,"4,356.00",Information Management Services,Large,Programme
UK Statistics Authority,Office for National Statistics,14-Dec-16,Other ICT Costs,National Accounts and Economic Statistics,Computacenter (UK) Limited,7425,150.44,Information Management Services,Large,Programme
UK Statistics Authority,Office for National Statistics,14-Dec-16,Software Pool 4YR,Digital Services Technology and Methodology,Computacenter (Uk) Limited,7425,"589,591.44",Information Management Services,Large,Programme
UK Statistics Authority,Office for National Statistics,14-Dec-16,Consultancy,Census,Brook Street (UK) Limited,7429,"75,471.60",Information Management Services,Large,Programme
UK Statistics Authority,Office for National Statistics,14-Dec-16,Consultancy,Census,Brook Street (UK) Limited,7429,"48,000.00",Information Management Services,Large,Programme
UK Statistics Authority,Office for National Statistics,14-Dec-16,ICT Outsourcing & Maintenance/Support,Digital Services Technology and Methodology,Valtech Ltd,7431,"137,337.00",Management Information Services,Large,Programme
UK Statistics Authority,Office for National Statistics,14-Dec-16,Travel & Subsistence,Corporate Support,Redfern Travel,7434,"39,069.19",Travel and Accommodation Booking Service,SME,Programme
UK Statistics Authority,Office for National Statistics,14-Dec-16,ICT Outsourcing & Maintenance/Support,Finance,Phoenix Software Ltd,7435,"51,251.90",Software Licenses,SME,Programme
UK Statistics Authority,Office for National Statistics,15-Dec-16,ICT Outsourcing & Maintenance/Support,Digital Services Technology and Methodology,Mastek,7444,"53,520.00",Information Management Services,Large,Programme
UK Statistics Authority,Office for National Statistics,15-Dec-16,Non IT Contractual Payments,Office of the Chief Economic Adviser,Ricardo-Aea Ltd,7450,"50,967.60",Statistical Services,SME,Programme
UK Statistics Authority,Office for National Statistics,15-Dec-16,Contractors,Business Services and Development,Sopra Steria,7454,"10,780.56",Information Management Services,Large,Programme
UK Statistics Authority,Office for National Statistics,15-Dec-16,Contractors,Digital Services Technology and Methodology,Sopra Steria,7454,"15,895.92",Information Management Services,Large,Programme
UK Statistics Authority,Office for National Statistics,15-Dec-16,Contractors,Portfolio Design,Sopra Steria,7454,"11,978.40",Information Management Services,Large,Programme
UK Statistics Authority,Office for National Statistics,15-Dec-16,IT Purchases > 2K,Digital Services Technology and Methodology,Stone Computers,7457,"773,921.09",Infrastructure Software Assurance,Large,Programme
UK Statistics Authority,Office for National Statistics,15-Dec-16,ICT Outsourcing & Maintenance/Support,Digital Services Technology and Methodology,Indigoblue,7460,"33,120.00",Information Management Services,Large,Programme
UK Statistics Authority,Office for National Statistics,15-Dec-16,ICT Outsourcing & Maintenance/Support,Portfolio Design,Indigoblue,7460,"21,120.00",Information Management Services,Large,Programme
UK Statistics Authority,Office for National Statistics,15-Dec-16,Accommodation & Building Management - Miscellaneous Minor Works,National Accounts and Economic Statistics,The Senator Group,7462,"29,002.46",Smart Working Furniture,Large,Programme
UK Statistics Authority,Office for National Statistics,15-Dec-16,Contractors,Digital Services Technology and Methodology,Methods Digital Ltd,7463,"41,400.00",Information Management Services,Large,Programme
UK Statistics Authority,Office for National Statistics,16-Dec-16,Contractors,Finance,Certus Solutions Consulting Services Ltd,7690,"25,998.82",Information Management Services,SME,Programme
UK Statistics Authority,Office for National Statistics,16-Dec-16,Contractors,Digital Services Technology and Methodology,La International,7704,"14,089.96",Information Management Services,SME,Programme
UK Statistics Authority,Office for National Statistics,16-Dec-16,Contractors,National Accounts and Economic Statistics,La International,7704,"13,358.93",Information Management Services,SME,Programme
UK Statistics Authority,Office for National Statistics,16-Dec-16,Electricity,Property Titchfield,Edf Energy,30000259,"29,905.37",Titchfield Electricity Charges ,Large,Programme
UK Statistics Authority,Office for National Statistics,16-Dec-16,Electricity,Property London,Edf Energy,30000260,"30,543.65",London Electricity Charges ,Large,Programme
UK Statistics Authority,Office for National Statistics,19-Dec-16,ICT Outsourcing & Maintenance/Support,Digital Services Technology and Methodology,Mango Solutions,7986,"57,252.00",Information Management Services,SME,Programme
UK Statistics Authority,Office for National Statistics,19-Dec-16,Surveys,Social and Analysis,Tns UK Ltd,7997,"391,216.80",Statistical Services,Large,Programme
UK Statistics Authority,Office for National Statistics,19-Dec-16,Electricity,Property Newport,Edf Energy,30000261,"28,691.45",Newport Electricity Charges ,Large,Programme
UK Statistics Authority,Office for National Statistics,21-Dec-16,ICT Outsourcing & Maintenance/Support,Digital Services Technology and Methodology,Service Integrators,8495,"38,731.00",Information Management Services,SME,Programme
Grand Total,,,,,,,,,,
